bitfinex/quotes_ETHUSD_20251116
["timestamp","ask_amount","ask_price","bid_price","bid_amount"]
[1763286171534,0.9261,3223.8,3223.7,3.10199213]
[1763286176179,0.4658,3223.8,3223.7,3.10199213]
[1763286176380,0.4658,3223.8,3223.7,4.72914856]
[1763286176580,0.9261,3223.8,3223.7,4.72914856]
[1763286177705,0.9261,3223.8,3223.7,3.10199213]
[1763286178487,0.9281,3223.8,3223.7,3.10199213]
[1763286179052,0.9281,3223.8,3223.2,0.93172765]
[1763286179256,0.9281,3223.8,3222.6,1.62715643]
[1763286179257,0.4658,3223.3,3222.7,6.20597634]
[1763286179452,5.44500942,3223.7,3222.8,3.82799999]
[1763286179679,5.44500942,3223.7,3222.7,7.1378458]
[1763286179680,0.4658,3222.9,3222.7,6.20597634]
[1763286179864,0.2349,3222.8,3222.7,3.10298817]
[1763286180069,0.2349,3222.8,3222.7,4.23672897]
[1763286180381,0.6952,3222.8,3222.7,4.23672897]
[1763286180549,0.1889,3223.0,3222.8,1.1337408]
[1763286180755,0.4658,3222.9,3222.8,1.1337408]
[1763286180955,0.4658,3222.9,3222.8,2.76089723]
[1763286181156,0.9261,3222.9,3222.8,2.76089723]
[1763286182504,0.9261,3222.9,3222.8,5.86378912]
[1763286182802,0.9261,3222.9,3222.6,6.20616892]
[1763286183012,0.458,3222.8,3222.6,6.20616892]
[1763286183193,0.4658,3222.7,3222.6,3.10308446]
[1763286183573,0.9261,3222.7,3222.6,3.10308446]
[1763286183772,0.9261,3222.7,3222.3,3.10329348]
[1763286184103,0.458,3222.6,3222.3,3.10329348]
[1763286184289,0.4658,3222.4,3222.1,0.001]
[1763286184471,0.4621,3222.2,3222.1,0.001]
[1763286184816,0.4993,3222.5,3222.1,1.62815643]
[1763286184975,0.4993,3222.5,3222.1,2.09535643]
[1763286185170,0.4621,3222.2,3222.1,1.62815643]
[1763286185484,0.4621,3222.2,3222.1,0.001]
[1763286185885,0.4621,3222.2,3222.1,1.62815643]
[1763286186675,0.4621,3222.2,3222.1,4.73172242]
[1763286186875,0.9614,3222.2,3222.1,4.73172242]
[1763286187074,0.9614,3222.2,3222.1,3.10456599]
[1763286188412,0.9614,3222.2,3222.1,0.001]
[1763286191728,0.4621,3222.2,3222.1,0.001]
[1763286192798,0.4993,3222.7,3222.1,0.4682]
[1763286193106,0.4993,3222.7,3222.2,1.62715643]
[1763286193705,0.4993,3222.7,3222.4,1.62715643]
[1763286194145,0.4816,3222.5,3222.4,1.62715643]
[1763286194932,0.1889,3223.0,3222.4,1.62715643]
[1763286195233,0.4511,3222.9,3222.4,1.62715643]
[1763286195929,0.4511,3222.9,3222.5,6.20636152]
[1763286196291,0.1889,3223.0,3222.5,6.20636152]
[1763286196518,0.1889,3223.0,3222.5,9.30954228]
[1763286196519,0.64,3223.0,3222.5,9.30954228]
[1763286196923,0.1889,3223.0,3222.6,1.73569241]
[1763286197119,0.002,3223.8,3222.6,1.73569241]
[1763286197324,0.4511,3223.7,3222.8,1.73569241]
[1763286197623,0.002,3222.9,3222.8,1.73569241]
[1763286197837,0.002,3222.9,3222.8,4.8385843]
[1763286198157,0.002,3222.9,3222.8,5.3147843]
[1763286198522,0.002,3222.9,3222.8,8.65921751]
[1763286199158,0.002,3222.9,3222.8,5.9723251]
[1763286199660,0.002,3222.9,3222.8,6.4485251]
[1763286200943,0.002,3222.9,3222.8,8.18421751]
[1763286201121,0.002,3222.9,3222.8,8.65921751]
[1763286201329,0.002,3222.9,3222.8,4.71283269]
[1763286201647,0.4836,3222.9,3222.8,5.9723251]
[1763286202258,0.002,3222.9,3222.8,6.4485251]
[1763286202863,0.002,3222.9,3222.8,8.18421751]
[1763286203240,0.002,3222.9,3222.8,6.8996251]
[1763286203638,0.002,3222.9,3222.8,8.63531751]
[1763286207163,0.002,3222.9,3222.8,9.11031751]
[1763286212074,0.002,3222.9,3222.8,8.63531751]
[1763286212876,0.002,3222.9,3222.8,9.11031751]
[1763286213652,0.002,3222.9,3222.8,8.63531751]
[1763286213865,0.002,3222.9,3222.8,9.11031751]
[1763286214892,0.002,3222.9,3222.8,9.51582151]
[1763286216266,0.002,3223.8,3223.2,0.4814]
[1763286216457,0.002,3223.8,3223.7,5.08652562]
[1763286216656,0.002,3223.8,3223.7,5.96702962]
[1763286216847,0.002,3223.8,3223.7,6.44462962]
[1763286217058,0.002,3223.8,3223.7,6.94462962]
[1763286217984,0.002,3223.8,3223.7,10.04665524]
[1763286218170,0.002,3223.8,3223.7,9.54665524]
[1763286225666,0.002,3223.8,3223.7,9.07165524]
[1763286226089,0.002,3223.8,3223.7,9.54665524]
[1763286227604,0.002,3223.8,3223.7,9.07165524]
[1763286228426,0.002,3223.8,3223.7,9.54665524]
[1763286230414,0.002,3223.8,3223.7,10.04665524]
[1763286235440,0.002,3224.5,3224.1,0.405504]
[1763286235639,0.002,3224.5,3224.1,8.76107038]
[1763286235937,0.002,3224.5,3224.1,9.23607038]
[1763286236115,0.002,3224.5,3224.1,9.90847038]
[1763286238510,0.002,3224.5,3224.1,9.26607038]
[1763286238720,0.4796,3224.5,3224.1,9.26607038]
[1763286238940,0.4915,3224.2,3224.1,8.78467038]
[1763286239546,0.002,3224.2,3224.1,8.78467038]
[1763286240210,0.002,3224.2,3224.1,9.26607038]
[1763286240440,0.002,3224.2,3224.1,9.43347038]
[1763286240645,0.002,3224.2,3224.1,10.40847038]
[1763286241339,0.002,3224.2,3224.1,9.93347038]
[1763286241920,0.002,3224.2,3224.1,8.78467038]
[1763286242242,0.002,3224.2,3224.1,9.26607038]
[1763286243110,0.002,3224.2,3224.1,9.43347038]
[1763286243511,0.002,3224.2,3224.1,9.90847038]
[1763286244014,0.002,3224.2,3224.1,9.43347038]
[1763286246149,0.9583,3224.2,3224.1,8.78467038]
[1763286246534,0.4617,3224.2,3224.1,8.78467038]
[1763286247248,0.4617,3224.2,3224.1,4.90778156]
[1763286247452,0.9583,3224.2,3224.1,6.64347397]
[1763286247658,0.9583,3224.2,3224.1,4.90778156]
[1763286247958,0.9583,3224.2,3224.1,10.47147396]
[1763286248852,0.9583,3224.2,3224.1,6.92964075]
[1763286250152,0.4617,3224.2,3224.1,6.92964075]
[1763286250323,0.4617,3224.2,3224.1,8.06338155]
[1763286251555,0.9583,3224.2,3224.1,8.06338155]
[1763286252053,0.9583,3224.2,3224.1,3.10164076]
[1763286252219,0.9583,3224.2,3223.9,1.1337408]
[1763286252427,0.6405,3224.0,3223.6,3.82799999]
[1763286252623,0.4572,3223.7,3223.6,3.10212185]
[1763286252823,0.4572,3223.7,3223.6,5.97155506]
[1763286253058,0.9538,3223.7,3223.6,5.97155506]
[1763286253362,0.9538,3223.7,3223.6,4.23586265]
[1763286256933,0.9538,3223.7,3223.6,5.8619082]
[1763286258160,0.9538,3223.7,3223.6,4.23586265]
[1763286258847,0.9538,3223.7,3223.6,3.10212185]
[1763286264154,0.9538,3223.7,3223.5,6.93021801]
[1763286264155,0.9538,3223.7,3223.5,10.03243609]
[1763286264360,0.6988,3223.6,3223.5,6.93021801]
[1763286268348,0.6988,3223.6,3223.5,3.10221802]
[1763286270045,0.6988,3223.6,3223.5,0.001]
[1763286272205,0.6988,3223.6,3223.5,3.10321808]
[1763286272408,0.213,3223.6,3223.5,3.10321808]
[1763286272706,0.4549,3223.6,3223.5,4.23695888]
[1763286273079,0.9407,3223.6,3223.5,4.23695888]
[1763286273907,0.9407,3223.6,3223.5,3.10321808]
[1763286276070,0.002,3223.8,3223.5,6.20543616]
[1763286276405,0.4908,3223.8,3223.5,6.20543616]
[1763286276605,0.4727,3223.6,3223.5,3.10321808]
[1763286277174,0.4727,3223.6,3223.5,3.59401808]
[1763286279288,0.9615,3223.6,3223.5,3.59401808]
[1763286282923,0.9615,3223.6,3223.5,7.42201807]
[1763286283111,0.4727,3223.6,3223.5,7.42201807]
[1763286283286,0.9615,3223.6,3223.5,7.42201807]
[1763286291715,0.4727,3223.6,3223.5,7.42201807]
[1763286292235,0.4727,3223.6,3223.5,9.04806362]
[1763286292429,0.9615,3223.6,3223.5,9.04806362]
[1763286292823,0.4727,3223.6,3223.5,9.04806362]
[1763286293535,0.4727,3223.6,3223.5,5.22006363]
[1763286294260,0.4727,3223.6,3223.5,3.59401808]
[1763286294536,0.9615,3223.6,3223.5,3.59401808]
[1763286296942,0.4727,3223.6,3223.5,3.59401808]
[1763286297107,0.9615,3223.6,3223.5,3.10321808]
[1763286297506,0.4727,3223.6,3223.5,3.10321808]
[1763286297710,0.002,3223.8,3223.5,6.68643616]
[1763286297947,0.002,3223.8,3223.5,7.61812041]
[1763286298123,0.4908,3223.8,3223.5,6.68643616]
[1763286298345,0.4908,3223.8,3223.6,0.6696]
[1763286298545,0.4727,3223.7,3223.6,0.6696]
[1763286299045,0.002,3223.8,3223.7,3.10202562]
[1763286299656,0.4747,3223.8,3223.7,3.10202562]
[1763286299943,0.4747,3223.8,3223.7,3.28432562]
[1763286300143,0.002,3223.8,3223.7,3.28432562]
[1763286301212,0.002,3223.8,3223.7,5.84307117]
[1763286301823,0.002,3223.8,3223.7,5.39137117]
[1763286302259,0.002,3223.8,3223.7,3.28432562]
[1763286302439,0.9635,3223.8,3223.7,3.28432562]
[1763286303156,0.9635,3223.8,3223.5,0.001]
[1763286303355,0.4859,3223.7,3223.6,3.10206168]
[1763286303764,0.9586,3223.7,3223.6,3.10206168]
[1763286304123,0.9586,3223.7,3223.5,0.001]
[1763286304338,0.002,3223.8,3223.5,0.001]
[1763286304339,0.6955,3223.6,3223.5,0.001]
[1763286304848,0.98653954,3223.6,3223.5,0.001]
[1763286305264,0.6955,3223.6,3223.5,0.001]
[1763286306367,2.61246092,3223.6,3223.5,0.001]
[1763286306561,5.97602886,3223.6,3223.5,0.001]
[1763286306723,2.87390701,3223.6,3223.5,0.001]
[1763286307361,5.97602886,3223.6,3223.5,0.001]
[1763286308351,1.24786146,3223.6,3223.5,0.001]
[1763286308657,0.98641537,3223.6,3223.5,0.001]
[1763286308956,4.08853722,3223.6,3223.5,0.001]
[1763286309373,0.98641537,3223.6,3223.5,0.001]
[1763286310178,4.08853722,3223.6,3223.5,0.001]
[1763286311574,0.98641537,3223.6,3223.5,0.001]
[1763286312746,4.08853722,3223.6,3223.5,0.001]
[1763286315590,0.98641537,3223.6,3223.5,0.001]
[1763286316048,0.6955,3223.6,3223.5,0.001]
[1763286316385,0.98561418,3223.6,3223.5,0.001]
[1763286318883,5.82322992,3223.6,3223.5,0.001]
[1763286319083,6.71595381,3223.6,3223.5,0.001]
[1763286321114,3.61383196,3223.6,3223.5,0.001]
[1763286325623,6.71595381,3223.6,3223.5,0.001]
[1763286326189,6.22715381,3223.6,3223.5,0.001]
[1763286326403,6.67725381,3223.6,3223.5,0.001]
[1763286328953,3.57513196,3223.6,3223.5,0.001]
[1763286329445,6.67725381,3223.6,3223.5,0.001]
[1763286330048,3.57513196,3223.6,3223.5,0.001]
[1763286330342,2.68240807,3223.6,3223.5,0.001]
[1763286330543,5.78452992,3223.6,3223.5,0.001]
[1763286330740,2.68240807,3223.6,3223.5,0.001]
[1763286331649,0.49681418,3223.6,3223.5,0.001]
[1763286333525,0.94691418,3223.6,3223.5,0.001]
[1763286333728,1.52555833,3223.6,3223.5,0.001]
[1763286334453,0.94691418,3223.6,3223.5,0.001]
[1763286339514,0.29011418,3223.6,3223.5,0.4826]
[1763286339713,0.002,3223.8,3223.5,3.95358778]
[1763286339913,0.002,3223.8,3223.5,0.001]
[1763286340345,0.002,3223.8,3223.7,0.4816]
[1763286340657,0.002,3223.8,3223.7,2.21709389]
[1763286340872,0.002,3223.8,3223.7,2.70989389]
[1763286341233,0.002,3223.8,3223.7,5.81191951]
[1763286341558,0.002,3223.8,3223.7,5.93613288]
[1763286342350,0.002,3223.8,3223.7,4.20063899]
[1763286345770,0.002,3223.8,3223.7,5.33437979]
[1763286346130,0.002,3223.8,3223.7,9.16237978]
[1763286348043,0.002,3223.8,3223.7,9.56788378]
[1763286357953,0.002,3223.8,3223.7,10.06788378]
[1763286361686,0.002,3223.8,3223.7,9.56788378]
[1763286367903,0.002,3224.2,3224.0,0.405504]
[1763286368130,0.002,3224.2,3224.1,5.65613258]
[1763286368542,0.002,3224.2,3224.1,6.58953258]
[1763286368745,0.002,3224.2,3224.1,10.91553257]
[1763286368909,0.002,3224.2,3224.1,14.01717333]
[1763286369118,0.002,3224.2,3224.1,13.51717333]
[1763286372121,0.002,3224.2,3224.1,14.01717333]
[1763286372903,0.1807,3226.0,3224.4,0.405504]
[1763286373238,0.76255135,3225.9,3225.3,1.73549389]
[1763286373439,0.76255135,3225.9,3225.3,3.82599999]
[1763286373440,0.4723,3225.9,3225.3,3.82599999]
[1763286373611,0.1807,3226.0,3225.3,3.82599999]
[1763286373612,0.4633,3225.4,3225.3,3.82599999]
[1763286373803,0.4633,3225.4,3225.2,1.73549389]
[1763286374140,0.7131,3225.3,3225.2,1.73549389]
[1763286374514,0.4741,3225.6,3225.2,3.47098778]
[1763286374743,0.4741,3225.6,3225.5,1.73549389]
[1763286375130,0.9627,3225.6,3225.5,4.83578841]
[1763286375533,0.1997,3226.2,3225.5,4.83578841]
[1763286375534,0.1997,3226.2,3225.5,17.49840666]
[1763286375843,0.6738,3226.2,3226.1,1.73549389]
[1763286376059,1.1624,3226.2,3226.1,1.73549389]
[1763286376211,1.1624,3226.2,3225.6,2.06468202]
[1763286376411,0.6883,3226.2,3226.1,1.73549389]
[1763286376844,0.6883,3226.2,3225.7,0.93093833]
[1763286377044,0.4741,3226.1,3225.9,1.73549389]
[1763286377348,0.4741,3226.1,3226.0,3.09981401]
[1763286377545,0.4741,3226.1,3226.0,4.03075523]
[1763286377753,0.9627,3226.1,3226.0,4.03075523]
[1763286378109,0.9627,3226.1,3226.0,0.93094122]
[1763286378313,0.9627,3226.1,3225.8,3.0999305]
[1763286378515,0.6709,3225.9,3225.8,3.0999305]
[1763286378714,1.145,3225.9,3225.7,4.03115575]
[1763286378937,1.145,3225.9,3225.7,0.93105679]
[1763286378938,0.6847,3225.8,3225.7,0.93105679]
[1763286379243,0.6847,3225.8,3225.6,3.10013922]
[1763286379415,0.1823,3225.9,3225.6,3.10013922]
[1763286379416,0.4741,3225.7,3225.6,3.10013922]
[1763286379616,0.9627,3225.7,3225.6,3.10013922]
[1763286380548,0.9627,3225.7,3225.5,0.93109725]
[1763286380713,0.6847,3225.6,3225.2,6.2011658]
[1763286380917,0.4741,3225.6,3225.2,7.13232952]
[1763286381142,0.45763906,3225.3,3225.2,4.03174662]
[1763286381322,0.45763906,3225.3,3225.2,5.65599367]
[1763286383146,0.93173906,3225.3,3225.2,5.65599367]
[1763286384962,0.45763906,3225.3,3225.2,5.65599367]
[1763286385263,0.4741,3225.6,3225.2,11.85715947]
[1763286385635,0.4741,3225.6,3225.2,10.92599575]
[1763286385819,0.4886,3225.3,3225.2,4.72482995]
[1763286386218,0.4886,3225.3,3225.2,5.21342995]
[1763286388368,0.4741,3225.8,3225.2,12.36919575]
[1763286388663,0.4741,3225.8,3225.4,1.62424705]
[1763286389453,0.4741,3225.8,3225.5,0.4741]
[1763286389924,0.4886,3225.6,3225.5,3.57439452]
[1763286390750,0.9627,3225.6,3225.5,3.57439452]
[1763286391668,0.4886,3225.6,3225.5,3.57439452]
[1763286392043,0.9627,3225.6,3225.5,3.57439452]
[1763286393633,0.9627,3225.6,3225.4,3.10038655]
[1763286393864,0.6234,3225.5,3225.3,3.10045722]
[1763286394070,0.4852,3225.4,3225.3,3.10045722]
[1763286394437,0.9625,3225.4,3225.3,3.10045722]
[1763286394636,0.9625,3225.4,3225.3,3.58565722]
[1763286395635,0.9625,3225.4,3225.3,3.10045722]
[1763286399174,0.9625,3225.4,3225.2,6.20116413]
[1763286399499,0.4793,3225.7,3225.3,1.62424705]
[1763286400170,0.4793,3225.7,3225.3,5.45024704]
[1763286401177,0.4793,3225.7,3225.4,6.20078128]
[1763286402447,0.4923,3225.5,3225.4,3.10039064]
[1763286403592,0.9696,3225.5,3225.3,6.92648469]
[1763286403771,0.1424,3225.4,3225.3,6.92648469]
[1763286404187,0.4773,3225.5,3225.3,10.02697146]
[1763286404574,0.4793,3225.7,3225.3,10.02697146]
[1763286405268,0.002,3225.7,3225.5,1.62424705]
[1763286405473,0.002,3225.7,3225.6,0.4817]
[1763286405657,0.002,3225.7,3225.6,3.58189841]
[1763286407459,0.002,3225.7,3225.6,5.20614546]
[1763286408393,0.4943,3225.7,3225.6,3.10019841]
[1763286408603,0.9716,3225.7,3225.6,3.10019841]
[1763286409775,0.4943,3225.7,3225.5,6.92622057]
[1763286409970,0.002,3225.7,3225.6,1.62424705]
[1763286410179,0.4923,3225.6,3225.5,8.05996137]
[1763286410763,0.002,3225.7,3225.5,11.16025589]
[1763286411169,0.002,3225.7,3225.6,1.62424705]
[1763286411366,0.4923,3225.6,3225.5,8.05996137]
[1763286411797,0.9696,3225.6,3225.5,8.05996137]
[1763286413395,0.9696,3225.6,3225.5,6.92622057]
[1763286418107,0.9696,3225.6,3225.5,3.82599999]
[1763286418608,0.4923,3225.6,3225.5,6.92629451]
[1763286418776,0.9696,3225.6,3225.5,6.92629451]
[1763286421977,0.002,3225.7,3225.5,10.02658903]
[1763286422478,0.002,3225.7,3225.6,0.4817]
[1763286423312,0.9716,3225.7,3225.5,3.82599999]
[1763286423527,0.1871,3225.6,3225.5,3.82599999]
[1763286423706,0.1871,3225.6,3225.3,0.001]
[1763286423707,0.89346471,3225.6,3225.3,0.001]
[1763286423879,0.4893,3225.4,3225.3,3.10148677]
[1763286424502,0.9712,3225.4,3225.3,3.10148677]
[1763286425599,0.9712,3225.4,3225.3,0.001]
[1763286432191,0.4893,3225.4,3225.3,0.001]
[1763286432380,0.4839,3225.7,3225.3,0.001]
[1763286432807,0.4928,3225.4,3225.3,0.001]
[1763286433220,0.9747,3225.4,3225.3,0.001]
[1763286438927,1.52509205,3225.4,3225.3,0.001]
[1763286440533,0.75269471,3225.4,3225.3,0.001]
[1763286440845,0.4928,3225.4,3225.3,0.001]
[1763286441422,0.002,3225.7,3225.3,0.4577]
[1763286441627,0.4765,3225.7,3225.4,3.10039064]
[1763286441824,0.4765,3225.7,3225.4,6.20078128]
[1763286442145,0.002,3225.7,3225.6,0.4567]
[1763286442646,0.002,3225.7,3225.5,1.7329225]
[1763286443717,0.002,3225.7,3225.6,3.10019841]
[1763286443946,0.4745,3225.6,3225.3,0.001]
[1763286444137,0.4745,3225.6,3225.4,6.20070347]
[1763286444556,0.4745,3225.6,3225.4,3.10031283]
[1763286444557,0.4898,3225.5,3225.4,3.10031283]
[1763286444845,1.7329225,3226.1,3225.4,6.20070347]
[1763286445148,0.46376581,3226.0,3225.4,6.20070347]
[1763286445315,0.17329225,3226.0,3225.4,6.20070347]
[1763286445833,0.17329225,3226.0,3225.4,1.1337408]
[1763286446448,0.17329225,3226.0,3225.5,0.481]
[1763286446648,1.7329225,3226.4,3225.5,0.481]
[1763286446833,0.29049578,3226.3,3225.5,0.481]
[1763286447046,1.7329225,3226.0,3225.4,1.1337408]
[1763286447339,0.002,3225.5,3225.3,0.001]
[1763286452075,0.002,3225.5,3225.4,0.4567]
[1763286452251,0.002,3225.5,3225.4,0.9377]
[1763286452451,0.002,3225.5,3225.3,0.001]
[1763286456669,0.002,3225.5,3225.3,0.4864]
[1763286456974,0.002,3225.5,3225.4,0.4828]
[1763286457351,0.002,3225.5,3225.4,0.9682]
[1763286458246,0.002,3225.5,3225.3,0.001]
[1763286463175,0.002,3225.5,3225.4,0.9682]
[1763286463400,0.002,3225.5,3225.3,3.10148677]
[1763286463754,0.002,3225.5,3225.3,0.001]
[1763286463983,0.29066072,3225.4,3225.3,0.001]
[1763286466092,0.29066072,3225.4,3225.3,0.9692]
[1763286466479,0.29066072,3225.4,3225.3,0.4838]
[1763286467186,0.29066072,3225.4,3225.3,0.001]
[1763286469487,0.29066072,3225.4,3225.3,4.06968677]
[1763286471483,0.002,3225.5,3225.3,4.06968677]
[1763286471694,0.002,3225.5,3225.4,0.9682]
[1763286472067,0.002,3225.5,3225.4,2.7011225]
[1763286473377,0.002,3225.5,3225.4,3.6322342]
[1763286473578,0.002,3225.5,3225.4,6.73262484]
[1763286476383,0.002,3225.5,3225.4,10.55862483]
[1763286480187,0.002,3225.5,3225.4,11.69236563]
[1763286481227,0.002,3225.5,3225.4,13.42528813]
[1763286481731,0.002,3225.5,3225.4,11.69236563]
[1763286481888,0.002,3225.5,3225.4,7.86636564]
[1763286483435,0.002,3225.5,3225.4,6.89816564]
[1763286483630,0.002,3225.5,3225.4,7.86636564]
[1763286484715,0.002,3225.5,3225.4,9.59928814]
[1763286484908,0.002,3225.5,3225.4,7.86636564]
[1763286485109,0.002,3225.5,3225.4,5.64804314]
[1763286485311,0.002,3225.5,3225.4,0.9311117]
[1763286485512,0.002,3225.5,3225.3,0.001]
[1763286486511,0.17349225,3225.4,3225.3,0.001]
[1763286486831,0.46395314,3225.4,3225.3,0.001]
[1763286487657,2.19687564,3225.4,3225.3,0.001]
[1763286488145,0.46395314,3225.4,3225.3,0.001]
[1763286490598,0.46395314,3225.4,3225.3,0.4784]
[1763286490798,0.29046089,3225.4,3225.3,0.001]
[1763286491449,0.002,3225.5,3225.3,0.4784]
[1763286491650,0.002,3225.5,3225.3,0.001]
[1763286493587,0.002,3225.5,3225.4,0.4774]
[1763286493789,0.002,3225.5,3225.4,2.2103225]
[1763286493941,0.002,3225.5,3225.4,3.8127633]
[1763286494343,0.002,3225.5,3225.4,4.74390679]
[1763286494842,0.002,3225.5,3225.4,7.84429743]
[1763286495542,0.002,3225.5,3225.4,5.16527493]
[1763286495734,0.002,3225.5,3225.4,6.12527493]
[1763286496893,0.002,3225.5,3225.4,4.06039064]
[1763286498793,0.002,3225.5,3225.4,0.4825]
[1763286498996,0.002,3225.5,3225.4,0.96]
[1763286499144,0.002,3225.5,3225.4,0.4825]
[1763286499348,0.002,3225.5,3225.3,0.001]
[1763286499859,0.002,3225.5,3225.3,3.10148009]
[1763286500669,0.002,3225.5,3225.3,0.001]
[1763286501504,0.31221315,3225.5,3225.3,0.001]
[1763286501806,0.29031758,3225.4,3225.3,0.001]
[1763286508508,0.29018817,3225.4,3225.3,0.4835]
[1763286508904,0.29018817,3225.4,3225.3,0.001]
[1763286509607,0.002,3225.5,3225.3,0.4835]
[1763286511305,0.29022638,3225.4,3225.3,3.58398677]
[1763286511506,0.002,3225.5,3225.3,3.57898677]
[1763286511677,0.002,3225.5,3225.4,0.96]
[1763286511994,0.29222538,3225.5,3225.4,0.96]
[1763286512220,0.29222538,3225.5,3225.4,0.4825]
[1763286514020,0.29222538,3225.5,3225.4,0.42455]
[1763286514304,0.63145955,3225.5,3225.4,0.42455]
[1763286514508,0.63145955,3225.5,3225.3,0.001]
[1763286514711,0.29022538,3225.4,3225.3,0.001]
[1763286520737,0.29022538,3225.4,3225.3,0.9442]
[1763286521426,0.29022538,3225.4,3225.3,0.4933]
[1763286524610,0.29022538,3225.4,3225.3,0.001]
[1763286524802,0.62946919,3225.4,3225.3,0.001]
[1763286525113,0.29022538,3225.4,3225.3,0.001]
[1763286525928,0.29022538,3225.4,3225.3,0.4933]
[1763286526732,0.29022538,3225.4,3225.3,0.001]
[1763286531140,0.29022538,3225.4,3225.3,0.9442]
[1763286531543,0.29022538,3225.4,3225.3,0.4933]
[1763286533827,0.29022538,3225.4,3225.3,0.9442]
[1763286534216,0.29022538,3225.4,3225.3,0.001]
[1763286534416,0.62946854,3225.4,3225.3,0.001]
[1763286536056,0.29222538,3225.4,3225.3,0.001]
[1763286536750,0.29222538,3225.4,3225.3,0.4933]
[1763286537329,0.29222538,3225.4,3225.3,0.001]
[1763286538419,0.29222538,3225.4,3225.3,0.9442]
[1763286540255,0.29222538,3225.4,3225.3,4.04468677]
[1763286542242,0.29222538,3225.4,3225.3,3.10148677]
[1763286542463,0.29222538,3225.4,3225.3,4.04468677]
[1763286544751,0.29222538,3225.4,3225.3,0.9442]
[1763286544952,0.29222538,3225.4,3225.3,4.04468677]
[1763286550818,0.29222538,3225.4,3225.3,4.05568677]
[1763286554486,0.002,3225.4,3225.3,4.05568677]
[1763286556515,0.002,3225.4,3225.3,5.18942757]
[1763286560771,0.002,3225.4,3225.3,3.58918677]
[1763286561061,0.002,3225.4,3225.3,5.80488383]
[1763286561665,0.002,3225.4,3225.3,5.32218383]
[1763286562326,0.002,3225.4,3225.3,3.10148677]
[1763286562723,0.002,3225.4,3225.3,3.58918677]
[1763286562926,0.002,3225.4,3225.3,4.07188677]
[1763286563260,0.002,3225.4,3225.3,3.58918677]
[1763286563423,0.002,3225.4,3225.3,3.10148677]
[1763286563824,0.002,3225.4,3225.3,0.001]
[1763286564136,0.2925833,3225.4,3225.3,0.001]
[1763286564347,0.2925833,3225.4,3225.3,0.4887]
[1763286564549,0.002,3225.4,3225.3,0.9714]
[1763286565225,0.29260803,3225.4,3225.3,0.9714]
[1763286566444,0.29260803,3225.4,3225.3,0.001]
[1763286566646,0.29260803,3225.4,3225.3,3.10148677]
[1763286568863,2.02560509,3225.4,3225.3,0.001]
[1763286569036,2.40166531,3225.4,3225.3,0.001]
[1763286569240,5.50205595,3225.4,3225.3,0.001]
[1763286569564,3.76905889,3225.4,3225.3,0.001]
[1763286569770,0.66866825,3225.4,3225.3,0.001]
[1763286570131,0.29260803,3225.4,3225.3,0.001]
[1763286575784,0.29258644,3225.4,3225.3,0.001]
[1763286577091,3.39297708,3225.4,3225.3,0.001]
[1763286577295,5.12597414,3225.4,3225.3,0.001]
[1763286577985,7.992712,3225.4,3225.3,0.001]
[1763286578287,9.10221414,3225.4,3225.3,0.001]
[1763286578492,5.63622002,3225.4,3225.3,0.001]
[1763286578656,7.36921708,3225.4,3225.3,0.001]
[1763286580769,1.40208858,3225.4,3225.3,0.4896]
[1763286580968,0.29258644,3225.4,3225.3,0.001]
[1763286583872,0.29258644,3225.4,3225.3,0.4896]
[1763286584179,0.29258644,3225.4,3225.3,0.001]
[1763286590290,5.12597414,3225.4,3225.3,0.001]
[1763286597811,6.25971494,3225.4,3225.3,0.001]
[1763286598109,6.38391983,3225.4,3225.3,0.001]
[1763286598316,7.50584107,3225.4,3225.3,0.001]
[1763286601394,9.64434213,3225.4,3225.3,0.001]
[1763286603201,5.64863912,3225.4,3225.3,0.001]
[1763286603725,0.29258644,3225.4,3225.3,0.9686]
[1763286603925,0.29258644,3225.4,3225.3,0.001]
[1763286604285,0.29258644,3225.4,3225.3,0.4896]
[1763286604693,0.29258644,3225.4,3225.3,0.001]
[1763286605404,0.29258644,3225.4,3225.3,0.9328]
[1763286606133,0.29258644,3225.4,3225.3,0.4582]
[1763286608937,0.29258644,3225.4,3225.3,0.9328]
[1763286609967,0.29258644,3225.4,3225.3,4.03328677]
[1763286610101,0.29258644,3225.4,3225.3,0.9328]
[1763286610292,0.29258644,3225.4,3225.3,4.03328677]
[1763286610793,0.2924722,3225.4,3225.3,4.03328677]
[1763286612225,0.002,3225.4,3225.3,4.03328677]
[1763286612631,0.002,3225.4,3225.3,3.55868677]
[1763286612922,0.002,3225.4,3225.3,0.4582]
[1763286612923,0.29240322,3225.4,3225.3,0.4582]
[1763286613125,0.29240322,3225.4,3225.3,0.9328]
[1763286613630,0.29240322,3225.4,3225.3,4.03328677]
[1763286614037,0.29240322,3225.4,3225.3,0.4582]
[1763286614230,0.29240322,3225.4,3225.3,0.93]
[1763286614432,0.29240322,3225.4,3225.3,4.03048677]
[1763286614618,0.002,3225.4,3225.3,4.03048677]
[1763286616647,0.002,3225.4,3225.3,0.93]
[1763286616954,0.29230896,3225.4,3225.3,0.4582]
[1763286617310,0.29230896,3225.4,3225.3,4.03048677]
[1763286617646,0.002,3225.4,3225.3,5.76348383]
[1763286619028,0.002,3225.4,3225.3,4.03048677]
[1763286619326,0.002,3225.4,3225.3,6.05374599]
[1763286622955,0.002,3225.4,3225.3,4.32074893]
[1763286626346,0.002,3225.4,3225.3,7.07902243]
[1763286629074,0.002,3225.4,3225.3,10.90502242]
[1763286629779,0.002,3225.4,3225.3,9.28048972]
[1763286631441,0.001,3226.1,3225.7,0.4975]
[1763286631647,0.001,3226.1,3226.0,2.1220327]